bitfinex-derivatives/quotes_ETHF0:USTF0_20251008
["timestamp","ask_amount","ask_price","bid_price","bid_amount"]
[1759894178631,2.97078888,4447.0,4446.9,1.1419]
[1759894178833,0.63155,4447.1,4447.0,1.3262]
[1759894179224,0.63155,4447.1,4447.0,1.0195]
[1759894179419,0.63155,4447.1,4447.0,0.6943]
[1759894180233,0.63155,4447.1,4447.0,1.0195]
[1759894183433,0.63155,4447.1,4447.0,1.3395]
[1759894185632,0.63155,4447.1,4447.0,0.6943]
[1759894186332,3.51304625,4447.1,4447.0,0.1997]
[1759894186538,3.51304625,4447.1,4446.6,0.4819]
[1759894186539,0.40459,4446.7,4446.6,0.4819]
[1759894186739,3.83939,4446.7,4446.5,0.00171198]
[1759894186932,6.72088625,4446.7,4446.5,0.00171198]
[1759894188529,6.72088625,4446.7,4446.5,0.68001198]
[1759894189434,6.49388625,4446.7,4446.6,0.7892]
[1759894189737,6.72088625,4446.7,4446.6,0.7892]
[1759894191044,6.72088625,4446.7,4446.6,0.4819]
[1759894193642,6.72088625,4446.7,4446.6,0.7892]
[1759894193841,6.49388625,4446.7,4446.6,1.1092]
[1759894194137,0.40457,4447.0,4446.7,0.40459]
[1759894194344,0.63157,4447.0,4446.9,1.1092]
[1759894197842,0.4046,4446.6,4446.5,0.50541198]
[1759894198443,0.4046,4446.6,4446.5,0.98731198]
[1759894198641,0.4046,4446.6,4446.5,1.30731198]
[1759894199339,0.4046,4446.6,4446.5,0.98731198]
[1759894199736,0.4046,4446.6,4444.8,3.02454793]
[1759894199737,0.40467,4445.8,4444.8,2.01264793]
[1759894199937,0.40467,4445.8,4442.9,5.18477975]
[1759894199938,0.88358,4444.6,4444.5,1.99369114]
[1759894200140,0.4788,4444.4,4443.3,0.40489]
[1759894200342,0.40482,4444.2,4443.7,3.2078]
[1759894200846,2.43854726,4444.1,4444.0,0.1964]
[1759894201146,2.91734726,4444.1,4443.7,0.00208293]
[1759894201346,0.88365,4443.8,4443.7,0.00208293]
[1759894201841,0.88365,4443.8,4443.7,0.48398293]
[1759894203237,0.88365,4443.8,4442.8,0.4819]
[1759894203238,0.40494,4442.9,4442.8,0.4819]
[1759894203539,0.4788,4442.9,4442.8,0.4819]
[1759894204143,0.4788,4442.9,4442.8,0.48460427]
[1759894204534,0.40488,4443.5,4443.0,0.1964]
[1759894204742,0.48091102,4444.2,4443.6,0.4819]
[1759894205040,3.22142654,4444.1,4443.6,0.4819]
[1759894205245,0.40484,4444.0,4443.6,0.4819]
[1759894205450,0.40485,4443.9,4443.5,0.1964]
[1759894205639,0.4788,4444.0,4443.6,0.4941]
[1759894205945,0.40693102,4444.2,4443.6,0.4941]
[1759894206141,0.63283,4444.1,4443.6,0.4941]
[1759894206353,2.92512816,4444.0,4443.7,0.4941]
[1759894206547,3.55795816,4444.1,4443.5,0.1964]
[1759894206749,0.63283,4444.1,4443.6,0.4941]
[1759894207051,2.89159341,4444.0,4443.6,0.4941]
[1759894207244,0.00211102,4444.2,4444.0,0.193]
[1759894207441,0.00211102,4444.2,4444.1,0.4941]
[1759894208149,0.00211102,4444.2,4444.1,5.4941]
[1759894208851,3.2078,4445.3,4445.2,0.4941]
[1759894209950,3.20957403,4445.3,4445.2,0.4941]
[1759894210652,0.00177403,4445.3,4445.2,3.9299]
[1759894210847,0.00177403,4445.3,4445.2,9.06889298]
[1759894211350,0.00177403,4445.3,4445.2,8.9299]
[1759894213449,0.00177403,4445.3,4445.2,9.5667]
[1759894214351,0.5698,4446.6,4446.0,0.193]
[1759894214550,0.73782,4446.4,4446.3,0.8253]
[1759894214849,4.44338749,4446.4,4446.3,0.8253]
[1759894215254,4.44519065,4446.4,4446.3,0.82769158]
[1759894216045,3.56177065,4446.4,4446.3,1.13329158]
[1759894216248,0.66350316,4446.4,4446.3,1.13329158]
[1759894216644,0.33500316,4446.4,4446.3,1.13329158]
[1759894216845,0.00180316,4446.4,4446.3,1.13329158]
[1759894217045,0.40455,4447.1,4447.0,1.3239]
[1759894217247,1.06625,4447.1,4447.0,1.3239]
[1759894217950,1.06858878,4447.1,4447.0,1.3239]
[1759894218144,1.54738878,4447.1,4447.0,0.4941]
[1759894218351,0.3332,4446.7,4446.6,1.1309]
[1759894218550,0.48113878,4447.1,4446.6,0.6368]
[1759894218751,1.14283878,4447.1,4447.0,0.8253]
[1759894219247,1.54739878,4447.1,4447.0,0.8253]
[1759894219642,0.66403878,4447.1,4447.0,0.8253]
[1759894219848,0.66403878,4447.1,4447.0,1.1309]
[1759894220242,0.00233878,4447.1,4447.0,1.3239]
[1759894220446,0.00233878,4447.1,4447.0,4.5317]
[1759894220648,0.00233878,4447.1,4447.0,3.8949]
[1759894221052,3.2078,4447.8,4447.0,8.6278]
[1759894221254,3.2078,4448.3,4447.6,0.4941]
[1759894221448,3.2078,4448.3,4448.1,0.4941]
[1759894221851,3.8392,4448.8,4448.3,0.4941]
[1759894222051,3.84101714,4448.8,4448.2,0.40445]
[1759894222250,2.87818834,4448.7,4448.5,0.193]
[1759894222456,3.61401714,4448.8,4448.6,0.4941]
[1759894222651,3.20961714,4448.8,4448.6,0.4941]
[1759894222859,0.00181714,4448.8,4448.6,0.40441]
[1759894223059,0.00181714,4448.8,4448.7,0.4941]
[1759894224353,0.4788,4449.7,4448.7,0.4941]
[1759894224354,0.4788,4450.2,4448.8,0.4941]
[1759894224561,3.2078,4450.5,4450.0,0.59728]
[1759894224852,0.196,4450.9,4450.1,0.4941]
[1759894225057,0.4788,4450.8,4450.1,0.4941]
[1759894225256,2.96779203,4450.9,4450.4,0.40424]
[1759894225449,0.00200914,4450.9,4450.5,0.59723]
[1759894225646,0.00200914,4450.9,4450.6,0.4941]
[1759894225850,0.00200914,4450.9,4450.7,0.4941]
[1759894226361,0.00200914,4450.9,4450.8,0.4941]
[1759894227257,3.6866,4452.0,4451.1,0.4941]
[1759894227655,0.40416,4451.5,4451.0,0.193]
[1759894227958,0.40414,4451.6,4451.0,0.193]
[1759894228159,0.0020617,4451.6,4451.0,0.59719]
[1759894228359,0.0020617,4451.6,4451.1,0.4941]
[1759894228660,0.0020617,4451.6,4451.5,0.6871]
[1759894233056,0.0020617,4451.6,4451.5,1.09125]
[1759894235456,0.0020617,4451.6,4451.5,0.6871]
[1759894235762,0.0020617,4451.6,4451.5,1.3167]
[1759894235958,0.3108617,4451.6,4451.5,1.3167]
[1759894236162,0.6118617,4451.6,4451.5,1.3167]
[1759894238056,0.3108617,4451.6,4451.5,1.3167]
[1759894238252,0.0020617,4451.6,4451.5,1.3167]
[1759894240962,0.3108617,4451.6,4451.5,1.3167]
[1759894242469,0.0020617,4451.6,4451.5,4.5245]
[1759894243165,0.0020617,4451.6,4451.5,45.3245]
[1759894246069,0.0020617,4451.6,4451.5,45.5515]
[1759894246264,0.4925617,4451.6,4451.5,45.3245]
[1759894246570,0.4925617,4451.6,4451.5,4.5245]
[1759894246571,1.1166617,4451.6,4451.5,4.5245]
[1759894247071,1.02829,4451.1,4451.0,1.4918]
[1759894247271,1.51879,4451.1,4451.0,1.4918]
[1759894248069,1.51879,4451.1,4451.0,1.2988]
[1759894248571,0.3051,4451.1,4451.0,4.7012]
[1759894248970,0.3051,4451.5,4451.4,0.6067]
[1759894249174,0.83973114,4451.5,4451.4,0.6067]
[1759894249469,0.83973114,4451.5,4451.4,1.0718]
[1759894249770,1.15873114,4451.5,4451.4,1.0718]
[1759894250070,0.3051,4451.1,4451.0,4.4742]
[1759894250574,0.84123129,4451.1,4451.0,4.4742]
[1759894251069,0.53613129,4451.1,4451.0,4.4742]
[1759894253468,2.05492129,4451.1,4451.0,4.4742]
[1759894253671,1.51883,4450.6,4450.5,3.5139]
[1759894253864,1.51883,4450.6,4450.0,0.193]
[1759894253865,0.6241,4450.5,4450.4,1.07340943]
[1759894254171,0.53613129,4450.5,4450.4,1.07340943]
[1759894254374,0.84123129,4450.5,4450.4,1.07340943]
[1759894256176,0.83398763,4450.5,4450.4,1.07340943]
[1759894256375,4.06950999,4450.5,4450.4,1.07340943]
[1759894256565,3.44540999,4450.5,4450.4,1.07340943]
[1759894256763,0.52888763,4450.5,4450.4,1.07340943]
[1759894258275,0.52888763,4450.5,4450.4,1.29940943]
[1759894259176,0.52888763,4450.5,4450.4,47.09940943]
[1759894259376,0.70925,4451.5,4451.4,1.0718]
[1759894259564,2.03411733,4451.5,4451.4,0.7712]
[1759894260173,1.62996733,4451.5,4451.4,0.7712]
[1759894260368,1.13946733,4451.5,4451.4,1.0718]
[1759894260578,0.82046733,4451.5,4451.4,1.0718]
[1759894260972,1.13946733,4451.5,4451.4,1.0718]
[1759894261165,1.13946733,4451.5,4450.6,3.2078]
[1759894261166,0.6241,4450.7,4450.6,0.8327]
[1759894261365,0.51536733,4450.7,4450.6,0.8327]
[1759894261570,0.82046733,4450.7,4450.6,0.8327]
[1759894261876,0.82046733,4450.7,4450.6,1.2978]
[1759894262071,0.51536733,4450.7,4450.6,4.5056]
[1759894262276,0.70929,4451.1,4451.0,0.3061]
[1759894262471,0.51349962,4451.1,4451.0,1.2664]
[1759894262775,3.39156918,4451.1,4451.0,1.2664]
[1759894262976,0.51349962,4451.1,4451.0,1.2664]
[1759894263484,1.62809962,4451.1,4451.0,1.2664]
[1759894263972,0.319,4450.8,4450.7,0.7712]
[1759894264174,0.81859962,4450.8,4450.7,1.0718]
[1759894264375,0.51349962,4450.8,4450.7,1.0718]
[1759894264774,0.70927,4451.3,4451.2,0.3061]
[1759894264977,1.21999372,4451.3,4451.2,0.7712]
[1759894265177,3.395192,4451.3,4451.2,1.0718]
[1759894265377,0.51072372,4451.3,4451.2,1.0718]
[1759894266276,0.0020617,4451.6,4451.5,0.7969]
[1759894266471,0.0020617,4451.6,4451.5,1.2516]
[1759894266778,0.3061617,4451.6,4451.5,1.2516]
[1759894266978,0.81598594,4451.6,4451.5,1.2516]
[1759894267476,0.51188594,4451.6,4451.5,1.2516]
[1759894267677,0.81598594,4451.6,4451.5,1.2516]
[1759894267975,0.51188594,4451.6,4451.5,1.2516]
[1759894268280,0.0020617,4451.6,4451.5,1.2516]
[1759894272485,0.0020617,4451.6,4451.5,1.4776]
[1759894274980,1.19255,4453.0,4451.5,1.4776]
[1759894274981,3.2078,4452.9,4451.5,6.42257]
[1759894275176,3.5119,4452.9,4452.8,1.0654]
[1759894275381,6.90372988,4452.9,4452.8,1.0654]
[1759894275781,4.00893062,4452.9,4452.8,1.0654]
[1759894275983,3.51408996,4452.9,4452.8,1.0654]
[1759894276385,3.20998996,4452.9,4452.8,1.0654]
[1759894276785,0.00218996,4452.9,4452.8,1.0654]
[1759894277784,0.62168996,4452.9,4452.8,1.0654]
[1759894278787,0.62168996,4452.9,4452.8,0.7694]
[1759894278788,1.07108996,4452.9,4452.8,0.7694]
[1759894279091,1.0689,4452.6,4452.5,0.7694]
[1759894279890,1.47295,4452.6,4452.5,0.7694]
[1759894280090,1.0689,4452.6,4452.0,3.394]
[1759894280297,0.6195,4452.2,4452.1,1.0654]
[1759894280495,0.3041,4452.2,4452.1,1.0654]
[1759894280889,0.3041,4451.7,4451.6,0.4547]
[1759894281096,0.6195,4451.7,4451.6,1.0654]
[1759894281297,0.40411,4452.0,4451.9,0.6107]
[1759894281502,0.70821,4452.0,4451.9,1.0654]
[1759894282003,0.3041,4452.0,4451.9,1.0654]
[1759894282399,0.6195,4452.0,4451.9,1.0654]
[1759894282702,0.40414,4451.6,4451.5,0.1862]
[1759894283003,0.70824,4451.6,4451.5,0.7969]
[1759894283196,1.47304,4451.6,4451.5,1.0654]
[1759894283398,0.40421,4450.9,4450.8,3.2078]
[1759894283595,0.40424,4450.6,4450.4,0.00160943]
[1759894283795,1.0689,4450.5,4450.4,0.45630943]
[1759894284102,1.0689,4450.5,4450.4,0.00160943]
[1759894284703,0.40417,4451.3,4451.2,0.3147]
[1759894284900,0.40417,4451.3,4451.0,0.4547]
[1759894284901,0.4494,4451.2,4451.0,0.4547]
[1759894285201,0.6195,4450.5,4450.4,0.61230943]
[1759894285406,0.40423,4450.7,4450.6,1.0654]
[1759894285704,0.3041,4451.1,4451.0,1.2516]
[1759894286701,3.2078,4451.8,4451.0,1.2516]
[1759894286903,3.61193,4451.8,4451.6,0.4547]
[1759894287100,3.87816119,4451.7,4451.6,1.0654]
[1759894287409,4.32756119,4451.7,4451.6,0.4547]
[1759894287703,1.47312,4450.7,4450.6,0.7694]
[1759894288208,3.2078,4451.1,4451.0,1.2516]
[1759894288502,0.4494,4451.7,4451.4,0.6107]
[1759894288503,0.70826,4451.5,4451.4,0.6107]
[1759894288703,0.70826,4451.5,4451.4,1.0654]
[1759894288899,0.6195,4451.1,4451.0,0.9556]
[1759894289106,0.6195,4451.1,4451.0,1.2516]
[1759894289504,0.3041,4451.1,4451.0,1.2516]
[1759894289704,0.40422,4450.8,4450.5,3.394]
[1759894289904,1.02372,4450.8,4450.7,0.7694]
[1759894290601,1.47312,4450.8,4450.7,0.7694]
[1759894290806,1.47313,4450.6,4450.5,1.8038]
[1759894291201,1.02373,4450.6,4450.5,1.8038]
[1759894292009,1.02373,4450.6,4450.5,2.286]
[1759894292010,0.6195,4450.6,4450.5,2.286]
[1759894292511,1.0689,4450.6,4450.5,1.8038]
[1759894292806,1.0689,4450.6,4450.5,1.0344]
[1759894293106,4.00756127,4450.6,4450.5,1.0344]
[1759894293709,9.00756127,4450.6,4450.5,1.0344]
[1759894295505,8.38806127,4450.6,4449.3,0.4794]
[1759894295806,0.40432,4449.6,4449.5,0.1749]
[1759894296107,0.40432,4449.6,4449.5,0.6543]
[1759894296108,6.82143607,4449.6,4449.5,0.6543]
[1759894296310,11.82143607,4449.6,4449.5,0.1749]
[1759894296507,11.8235335,4449.6,4449.5,0.65635931]
[1759894296710,6.4192135,4449.6,4449.5,1.26015931]
[1759894297513,6.1932135,4449.6,4449.5,1.26015931]
[1759894297703,6.4192135,4449.6,4449.5,1.26015931]
[1759894298101,6.4192135,4449.6,4449.5,0.65635931]
[1759894301012,0.00209743,4449.6,4449.5,1.28675931]
[1759894301405,2.91825499,4449.6,4449.5,0.65635931]
[1759894301714,0.00209743,4449.6,4449.5,1.29025931]
[1759894302109,0.00209743,4449.6,4449.5,6.29025931]
[1759894302308,0.00209743,4449.6,4449.5,1.29025931]
[1759894302912,0.00209743,4449.6,4449.5,4.49805931]
[1759894303308,3.2078,4450.6,4449.5,9.49805931]
[1759894303513,3.61203,4450.6,4450.5,1.285]
[1759894304415,0.40651816,4450.6,4450.5,1.285]
[1759894307913,6.57159926,4450.6,4450.5,0.6511]
[1759894308111,6.57159926,4450.6,4450.5,0.1755]
[1759894308313,0.40427,4450.2,4450.1,1.1095]
[1759894308514,6.16736926,4450.6,4450.5,0.1755]
[1759894308710,6.79759926,4450.6,4450.5,1.285]
[1759894309620,6.39336926,4450.6,4450.5,1.285]
[1759894309919,3.18556926,4450.6,4450.5,1.285]
[1759894311022,2.95956926,4450.6,4450.5,1.285]
[1759894314016,0.00228816,4450.6,4450.5,1.285]
[1759894315219,0.00228816,4450.6,4450.5,4.4928]
[1759894316920,0.00228816,4450.6,4450.5,1.285]
[1759894317426,0.00228816,4450.6,4450.5,0.9682]
[1759894318824,0.00228816,4450.6,4450.5,0.6511]
[1759894319324,0.00228816,4450.6,4449.5,0.1755]
[1759894319325,49.38732134,4450.6,4449.5,0.1755]
[1759894319529,3.61212,4449.6,4449.5,0.48796423]
[1759894319725,0.40436,4449.2,4449.1,1.1037]
[1759894320130,8.36799667,4449.2,4449.0,0.1755]
[1759894320326,3.4348,4449.1,4449.0,0.17759087]
[1759894320625,11.90766028,4449.1,4449.0,0.17759087]
[1759894320829,0.40441,4448.6,4448.0,0.1755]
[1759894321024,3.83921,4448.6,4448.0,0.1755]
[1759894321225,11.70514771,4448.6,4448.0,0.1755]
[1759894321727,11.70514771,4448.6,4448.5,0.65320478]
[1759894323330,0.40444,4448.3,4448.2,0.8969]
[1759894323727,0.40446,4448.1,4448.0,0.6511]
[1759894323934,3.83926,4448.1,4448.0,0.6511]
[1759894324132,6.82332825,4448.1,4448.0,0.6511]
[1759894324332,6.82332825,4448.1,4448.0,0.65387599]
[1759894324924,11.82332825,4448.1,4448.0,0.00277599]
[1759894325537,11.82332825,4448.1,4448.0,0.18907599]
[1759894326029,11.82332825,4448.1,4448.0,0.66947599]
[1759894326030,6.82332825,4448.1,4448.0,0.66947599]
[1759894326731,6.59632825,4448.1,4448.0,0.66947599]
[1759894327031,6.82332825,4448.1,4448.0,0.18907599]
[1759894327628,6.59632825,4448.1,4448.0,0.18907599]
[1759894327834,6.82332825,4448.1,4448.0,0.66947599]
[1759894328733,6.59632825,4448.1,4448.0,0.66947599]
[1759894329230,6.82332825,4448.1,4448.0,0.66947599]
[1759894329830,6.59632825,4448.1,4448.0,0.66947599]
[1759894330141,6.82332825,4448.1,4448.0,0.66947599]
[1759894330429,6.59632825,4448.1,4448.0,0.66947599]
[1759894330633,6.82332825,4448.1,4448.0,0.66947599]
[1759894331537,6.82332825,4448.1,4448.0,0.18907599]
[1759894331729,6.82332825,4448.1,4448.0,0.66947599]
[1759894332737,6.82332825,4448.1,4447.0,0.4754]
[1759894332738,0.40455,4447.1,4447.0,0.4754]
[1759894332932,3.83935,4447.1,4447.0,0.1755]
[1759894333138,6.74968748,4447.1,4447.0,0.1755]
[1759894333333,0.4046,4446.6,4446.5,0.1755]
[1759894333538,3.8394,4446.6,4446.5,0.1755]
[1759894333839,6.7524718,4446.6,4446.5,0.17776764]
[1759894334032,6.3478718,4446.6,4446.5,0.77386764]
[1759894334340,3.21053432,4446.6,4446.5,5.77386764]
[1759894334634,0.00273432,4446.6,4446.5,5.77386764]
[1759894334940,0.00273432,4446.6,4446.5,6.25426764]
[1759894336933,3.2078,4447.8,4447.7,1.0765]
[1759894337139,3.4348,4447.8,4447.7,1.0765]
[1759894337341,6.3620215,4447.8,4447.7,1.0765]
[1759894337738,6.3620215,4447.8,4447.7,0.7803]
[1759894337939,6.36394821,4447.8,4447.7,0.4804]
[1759894338139,6.13694821,4447.8,4447.7,0.7803]
[1759894338337,6.36394821,4447.8,4447.7,1.0765]
[1759894340536,6.76843821,4447.8,4447.7,1.0765]
[1759894341438,6.36394821,4447.8,4447.7,1.0765]
[1759894343239,6.36394821,4447.8,4447.7,0.4804]
[1759894343431,6.36394821,4447.8,4447.7,0.7803]
[1759894344243,6.36394821,4447.8,4447.7,1.0765]
[1759894344741,3.2078,4448.3,4447.7,1.0765]
[1759894345042,3.2078,4448.3,4448.2,1.0765]
[1759894345245,3.15035833,4448.4,4448.2,0.5961]
[1759894345543,0.227,4448.4,4448.3,1.0765]
[1759894345937,3.10358738,4448.4,4448.3,1.0765]
[1759894346831,2.87658738,4448.4,4448.3,1.0765]
[1759894347037,3.10358738,4448.4,4448.3,1.0765]
[1759894348352,6.31138738,4448.4,4448.3,0.4804]
[1759894349243,0.40446,4448.1,4448.0,0.1863]
[1759894349438,1.23818,4448.1,4447.5,0.1863]
[1759894349744,3.61231,4447.6,4447.5,0.9666]
[1759894349943,3.83931,4447.6,4447.5,0.9666]
[1759894350146,6.75110455,4447.6,4447.5,0.9666]
[1759894350546,6.75110455,4447.6,4447.5,0.6667]
[1759894352846,6.75110455,4447.6,4447.5,0.9666]
[1759894353142,6.75110455,4447.6,4447.5,0.6667]
[1759894354347,7.2698934,4447.6,4447.5,0.6667]
[1759894355747,7.2698934,4447.6,4447.5,0.9666]
[1759894355945,7.0428934,4447.6,4447.5,0.9666]
[1759894356150,6.75110455,4447.6,4447.5,1.2632]
[1759894356343,6.34659455,4447.6,4447.5,1.2632]
[1759894357051,3.2078,4447.6,4447.5,6.2632]
[1759894357349,0.40446,4448.1,4448.0,0.59757]
[1759894357350,3.2078,4448.1,4448.0,0.59757]
[1759894357651,0.00246507,4448.4,4448.3,1.0913]
[1759894357950,2.90827146,4448.1,4447.5,0.1931]
[1759894358146,3.61231,4447.6,4447.5,0.9878]
[1759894358354,3.2078,4447.6,4447.5,1.2844]
[1759894358557,6.34758634,4447.6,4447.5,1.2844]
[1759894359144,3.61225,4448.2,4447.9,0.6074]
[1759894359347,3.2078,4448.2,4448.1,1.0913]
[1759894359552,2.88822395,4448.3,4448.2,1.49575]
[1759894359750,0.00246507,4448.4,4448.3,0.4458]
[1759894359949,0.00246507,4448.4,4448.3,1.062]
[1759894361254,0.00246507,4448.4,4448.3,6.062]
[1759894362258,0.00246507,4448.4,4448.3,1.062]
[1759894373163,0.00246507,4448.4,4448.3,1.289]
[1759894373367,0.00246507,4448.4,4448.3,42.089]
[1759894376964,0.00246507,4448.4,4448.3,1.289]
[1759894377166,0.77332756,4448.4,4448.3,1.062]
[1759894380578,0.00246507,4448.4,4448.3,1.062]
[1759894381083,3.2078,4449.2,4449.1,1.062]
[1759894381578,3.97866249,4449.2,4449.1,1.062]
[1759894382079,3.98132987,4449.2,4449.1,1.062]
[1759894382776,6.87132159,4449.2,4449.1,0.4458]
[1759894383282,7.09832159,4449.2,4449.1,0.4458]
[1759894383677,13.88010408,4449.2,4448.3,0.4458]
[1759894383882,5.15393498,4448.6,4448.3,0.4458]
[1759894384077,5.38093498,4448.6,4448.3,0.4458]
[1759894384277,1.01107,4448.5,4447.6,0.4458]
[1759894384478,4.38316249,4447.7,4447.5,0.1931]
[1759894384782,0.40455,4447.1,4447.0,0.6325]
[1759894384978,4.61021249,4447.1,4447.0,0.6325]
[1759894385280,6.70686397,4447.1,4447.0,0.6325]
[1759894385484,0.40459,4446.8,4446.6,0.4766]
[1759894385784,3.09451397,4446.7,4446.6,0.7836]
[1759894385976,2.86751397,4446.7,4446.6,1.1018]
[1759894386281,3.2078,4447.6,4447.1,0.40454]
[1759894386582,3.2078,4447.6,4447.5,1.2755]
[1759894386778,3.4348,4447.6,4447.5,1.2755]
[1759894386973,6.29639494,4447.6,4447.5,0.6503]
[1759894387178,6.29639494,4447.6,4447.5,0.1737]
[1759894387386,6.06939494,4447.6,4447.5,0.6503]
[1759894387580,6.29639494,4447.6,4447.5,0.6503]
[1759894387782,6.29639494,4447.6,4447.0,0.6503]
[1759894387981,3.2078,4447.1,4447.0,0.6503]
[1759894388284,6.3888116,4447.1,4447.0,0.6503]
[1759894388678,0.4046,4446.6,4446.5,0.66556764]
[1759894388984,3.8394,4446.6,4446.5,0.97256764]
[1759894389484,6.79752052,4446.6,4446.5,0.66556764]
[1759894391180,6.16592052,4446.6,4446.5,1.29076764]
[1759894391380,3.4348,4446.6,4446.5,1.29076764]
[1759894392882,3.2078,4447.1,4446.5,1.29076764]
[1759894393083,3.2078,4447.1,4447.0,1.2755]
[1759894395087,3.61235,4447.1,4447.0,1.2755]
[1759894395476,3.61235,4447.1,4447.0,0.9573]
[1759894396191,3.2078,4447.1,4447.0,0.9573]
[1759894396384,3.2078,4447.1,4447.0,1.2755]
[1759894397292,6.17111543,4447.1,4447.0,0.1737]
[1759894397791,6.17111543,4447.1,4447.0,0.6503]
[1759894397989,0.40459,4446.7,4446.5,0.66556764]
[1759894398185,3.4348,4446.6,4446.5,0.66556764]
[1759894398384,6.36573532,4446.6,4446.5,0.66556764]
[1759894398989,6.36573532,4446.6,4446.5,0.00226764]
[1759894399485,6.36573532,4446.6,4445.7,0.4766]
[1759894399486,12.37724532,4446.6,4445.7,0.4766]
[1759894399790,3.61244,4446.1,4446.0,0.6633]
[1759894399991,3.83944,4446.1,4446.0,0.9703]
[1759894400183,6.70394624,4446.1,4446.0,0.9703]
[1759894400378,6.70394624,4446.1,4446.0,0.97246759]
[1759894402385,6.70394624,4446.1,4446.0,0.66546759]
[1759894403392,6.07230624,4446.1,4446.0,1.29066759]
[1759894403691,6.29930624,4446.1,4446.0,1.29066759]
[1759894405083,6.29930624,4446.1,4446.0,0.66546759]
[1759894405282,6.29930624,4446.1,4446.0,0.18886759]
[1759894405494,6.29930624,4446.1,4446.0,0.66546759]
[1759894406489,6.29930624,4446.1,4446.0,0.18886759]
[1759894406800,6.29930624,4446.1,4446.0,0.00216759]
[1759894408595,11.29930624,4446.1,4445.5,0.1737]
[1759894408796,0.40473,4445.1,4445.0,0.1737]
[1759894409098,6.72587764,4445.1,4445.0,0.6503]
[1759894409688,6.72587764,4445.1,4445.0,0.65308877]
[1759894409689,6.72771756,4445.1,4445.0,0.65308877]
[1759894409894,6.72771756,4445.1,4445.0,0.00278877]
[1759894411688,6.72771756,4445.1,4445.0,0.47938877]
[1759894411894,6.09598756,4445.1,4445.0,0.65308877]
[1759894412094,6.32298756,4445.1,4445.0,0.65308877]
[1759894413401,6.09598756,4445.1,4445.0,0.65308877]
[1759894413598,6.32298756,4445.1,4445.0,0.00278877]
[1759894414195,6.32298756,4445.1,4444.5,0.1737]
[1759894414196,0.40478,4444.6,4444.5,0.1737]
[1759894414399,3.83958,4444.6,4444.5,0.1737]
[1759894414700,6.81751415,4444.6,4444.5,0.1737]
[1759894414895,6.81751415,4444.6,4444.3,0.4766]
[1759894414896,0.4048,4444.4,4444.3,0.4766]
[1759894415096,0.6318,4444.4,4444.3,0.47820707]
[1759894415400,3.57892627,4444.4,4444.3,0.00160707]
[1759894417599,0.40488,4443.6,4443.5,0.1794]
[1759894417895,3.62385524,4443.6,4443.5,0.1794]
[1759894418099,0.40491,4443.2,4443.1,0.4658]
[1759894418401,6.71000487,4443.2,4442.5,0.1737]
[1759894418701,6.71000487,4443.2,4443.0,0.17590288]
[1759894419296,6.71000487,4443.2,4443.0,0.00220288]
[1759894419902,6.71000487,4443.2,4443.0,0.64430288]
[1759894420399,6.48300487,4443.2,4443.1,0.4653]
[1759894420592,3.61264,4443.9,4443.8,0.3105]
[1759894420793,3.83964,4443.9,4443.8,0.7758]
[1759894421094,3.51352849,4443.9,4443.8,0.4653]
[1759894422704,0.40487,4443.6,4443.5,0.1768]
[1759894422904,0.63187,4443.6,4443.5,0.6421]
[1759894423102,0.40492,4443.1,4443.0,0.00220288]
[1759894423405,0.40487,4443.6,4443.5,0.6421]
[1759894423605,0.63187,4443.6,4443.5,0.6421]
[1759894423808,3.58121292,4443.6,4443.5,0.6421]
[1759894424203,0.40492,4443.1,4443.0,0.64210288]
[1759894424399,0.63192,4443.1,4443.0,0.64210288]
[1759894424605,0.63192,4443.1,4443.0,2.88e-06]
[1759894424606,3.58017784,4443.1,4443.0,2.88e-06]
[1759894427806,3.35317784,4443.1,4443.0,2.88e-06]
[1759894428013,3.58017784,4443.1,4443.0,2.88e-06]
[1759894429508,8.58017784,4443.1,4443.0,2.88e-06]
[1759894429810,9.09342915,4443.1,4443.0,2.88e-06]
[1759894430409,8.86642915,4443.1,4443.0,2.88e-06]
[1759894430713,9.09342915,4443.1,4443.0,2.88e-06]
[1759894432110,0.40501,4442.1,4442.0,0.6447]
[1759894432509,3.51026765,4442.1,4442.0,0.6447]
[1759894433108,3.51026765,4442.1,4442.0,0.6467929]
[1759894433611,2.87825765,4442.1,4442.0,1.2493929]
[1759894433815,3.10525765,4442.1,4442.0,0.6467929]
[1759894434012,0.227,4442.1,4442.0,0.6467929]
[1759894434213,3.1390078,4442.1,4442.0,0.0020929]
[1759894435212,0.4051,4441.1,4441.0,0.1768]
[1759894435407,0.6321,4441.1,4441.0,0.1768]
[1759894435612,3.60250876,4441.1,4441.0,0.6421]
[1759894436215,3.60488456,4441.1,4441.0,0.6436799]
[1759894436515,3.60488456,4441.1,4441.0,0.1783799]
[1759894437013,3.60488456,4441.1,4441.0,0.0015799]
[1759894437315,0.40514,4440.6,4440.5,0.1768]
[1759894437516,0.0023758,4441.1,4441.0,1.64981]
[1759894437718,0.0023758,4441.1,4441.0,4.85761]
[1759894437915,0.0023758,4441.1,4441.0,4.4525]
[1759894438117,0.1783758,4441.1,4441.0,4.1604]
[1759894438318,3.49531393,4441.1,4441.0,0.00196107]
[1759894438812,0.40514,4440.6,4440.5,0.1768]
[1759894439025,0.227,4440.6,4440.5,0.4873]
[1759894439223,3.13883813,4440.6,4440.5,1.2447]
[1759894439428,3.13883813,4440.6,4440.5,0.6421]
[1759894439623,0.40515,4440.5,4440.4,3.2078]
[1759894439828,0.40515,4440.5,4440.4,0.00276776]
[1759894440029,3.39238618,4440.5,4440.4,0.00276776]
[1759894440227,2.98723618,4440.5,4440.4,0.46806776]
[1759894440421,2.98723618,4440.5,4440.4,6.07066776]
[1759894440722,2.98807439,4440.6,4440.5,1.2447]
[1759894440926,0.63214,4440.6,4440.5,0.1768]
[1759894441125,3.62021439,4440.6,4440.5,0.1768]
[1759894441325,3.62021439,4440.6,4440.4,3.21056776]
[1759894441326,0.63214,4440.6,4440.4,3.21056776]
[1759894441522,3.60079128,4440.6,4440.4,3.67586776]
[1759894441928,3.60079128,4440.6,4440.5,0.6421]